[Event "Titled Tuesday Blitz November 08 Early 2022"]
[White "Khamdamova, Afruza"]
[Black "Gulevich, Artem"]
[WhiteFideId "14210444"]
[BlackFideId "24119580"]
[WhiteElo "2018"]
[BlackElo "2218"]
[Result "1/2-1/2"]
[Round "08"]
[TimeControl "180+1"]
[Date "2022.11.09"]
[WhiteClock "0:01:01"]
[BlackClock "0:01:34"]

1. e4 {[%clk 0:03:00]}  c5 {[%clk 0:02:59]} 2. Nf3 {[%clk 0:03:01]}  Nc6 {[%clk 0:03:00]} 3. d4 {[%clk 0:03:01]}  cxd4 {[%clk 0:03:01]} 4. Nxd4 {[%clk 0:03:01]}  Qb6 {[%clk 0:03:01]} 5. Nb3 {[%clk 0:02:59]}  Nf6 {[%clk 0:03:01]} 6. Nc3 {[%clk 0:02:59]}  e6 {[%clk 0:03:01]} 7. Be3 {[%clk 0:02:59]}  Qc7 {[%clk 0:03:01]} 8. Be2 {[%clk 0:02:59]}  Bb4 {[%clk 0:03:01]} 9. Qd3 {[%clk 0:02:44]}  d5 {[%clk 0:03:00]} 10. exd5 {[%clk 0:02:41]}  Nxd5 {[%clk 0:03:00]} 11. Bd2 {[%clk 0:02:41]}  Nxc3 {[%clk 0:02:24]} 12. Bxc3 {[%clk 0:02:37]}  Bxc3+ {[%clk 0:02:24]} 13. Qxc3 {[%clk 0:02:37]}  Qe5 {[%clk 0:02:25]} 14. Qxe5 {[%clk 0:02:31]}  Nxe5 {[%clk 0:02:26]} 15. O-O-O {[%clk 0:02:26]}  Bd7 {[%clk 0:02:20]} 16. f4 {[%clk 0:02:24]}  Ng6 {[%clk 0:02:19]} 17. g3 {[%clk 0:02:20]}  O-O-O {[%clk 0:02:14]} 18. Bf3 {[%clk 0:02:18]}  Ne7 {[%clk 0:02:07]} 19. Na5 {[%clk 0:01:55]}  b6 {[%clk 0:01:49]} 20. Nb7 {[%clk 0:01:54]}  Rdf8 {[%clk 0:01:49]} 21. Nd6+ {[%clk 0:01:51]}  Kc7 {[%clk 0:01:49]} 22. Rd3 {[%clk 0:01:43]}  Nc8 {[%clk 0:01:39]} 23. Rhd1 {[%clk 0:01:41]}  Nxd6 {[%clk 0:01:35]} 24. Rc3+ {[%clk 0:01:22]}  Kb8 {[%clk 0:01:34]} 25. Rxd6 {[%clk 0:01:21]}  Bc8 {[%clk 0:01:35]} 26. Rcd3 {[%clk 0:01:14]}  Kc7 {[%clk 0:01:34]} 27. Rc6+ {[%clk 0:01:14]}  Kb8 {[%clk 0:01:34]} 28. Rcd6 {[%clk 0:01:12]}  Kc7 {[%clk 0:01:34]} 29. Rc6+ {[%clk 0:01:00]}  Kb8 {[%clk 0:01:34]} 30. Rcd6 {[%clk 0:01:01]} 1/2-1/2


[Site "https://www.chess.com"]

[Event "Titled Tuesday Blitz November 08 Early 2022"]
[White "Kim, Sergey"]
[Black "Manukian, Artak"]
[WhiteFideId "13700570"]
[BlackFideId "13301373"]
[WhiteElo "2599"]
[BlackElo "2130"]
[Result "0-1"]
[Round "08"]
[TimeControl "180+1"]
[Date "2022.11.09"]
[WhiteClock "0:00:25"]
[BlackClock "0:00:19"]

1. d4 {[%clk 0:03:00]}  Nf6 {[%clk 0:02:58]} 2. c4 {[%clk 0:03:01]}  e6 {[%clk 0:02:59]} 3. Nc3 {[%clk 0:03:01]}  Bb4 {[%clk 0:02:59]} 4. Qc2 {[%clk 0:03:01]}  O-O {[%clk 0:02:59]} 5. a3 {[%clk 0:03:01]}  Bxc3+ {[%clk 0:02:58]} 6. Qxc3 {[%clk 0:03:02]}  Ne4 {[%clk 0:02:57]} 7. Qc2 {[%clk 0:03:00]}  d5 {[%clk 0:02:57]} 8. Nf3 {[%clk 0:03:00]}  b6 {[%clk 0:02:55]} 9. g3 {[%clk 0:03:00]}  Ba6 {[%clk 0:02:54]} 10. b3 {[%clk 0:03:00]}  c5 {[%clk 0:02:52]} 11. dxc5 {[%clk 0:02:59]}  bxc5 {[%clk 0:02:51]} 12. Bg2 {[%clk 0:02:58]}  Nc6 {[%clk 0:02:51]} 13. O-O {[%clk 0:02:57]}  f5 {[%clk 0:02:48]} 14. Rd1 {[%clk 0:02:55]}  Qf6 {[%clk 0:02:38]} 15. Bb2 {[%clk 0:02:44]}  d4 {[%clk 0:02:37]} 16. b4 {[%clk 0:02:36]}  Bb7 {[%clk 0:02:12]} 17. bxc5 {[%clk 0:02:35]}  e5 {[%clk 0:02:08]} 18. e3 {[%clk 0:02:27]}  dxe3 {[%clk 0:02:03]} 19. fxe3 {[%clk 0:02:27]}  Qh6 {[%clk 0:01:59]} 20. Qe2 {[%clk 0:02:20]}  Rae8 {[%clk 0:01:50]} 21. Rd5 {[%clk 0:02:18]}  Nf6 {[%clk 0:01:43]} 22. Rd6 {[%clk 0:02:10]}  Qh5 {[%clk 0:01:33]} 23. Re1 {[%clk 0:01:56]}  Ne4 {[%clk 0:01:28]} 24. Rd5 {[%clk 0:01:53]}  Nf6 {[%clk 0:01:22]} 25. Nxe5 {[%clk 0:01:43]}  Qxe2 {[%clk 0:01:18]} 26. Rxe2 {[%clk 0:01:43]}  Nxe5 {[%clk 0:01:10]} 27. Rxe5 {[%clk 0:01:42]}  Bxg2 {[%clk 0:01:09]} 28. Kxg2 {[%clk 0:01:42]}  Ne4 {[%clk 0:01:04]} 29. Rxe8 {[%clk 0:01:36]}  Rxe8 {[%clk 0:01:04]} 30. Bd4 {[%clk 0:01:36]}  Rc8 {[%clk 0:01:02]} 31. Rb2 {[%clk 0:01:32]}  Nxc5 {[%clk 0:01:00]} 32. Rb5 {[%clk 0:01:32]}  Ne6 {[%clk 0:00:58]} 33. Bxa7 {[%clk 0:01:30]}  Rxc4 {[%clk 0:00:57]} 34. Ra5 {[%clk 0:01:18]}  g5 {[%clk 0:00:47]} 35. h3 {[%clk 0:01:14]}  h5 {[%clk 0:00:46]} 36. Bb6 {[%clk 0:01:04]}  Rc2+ {[%clk 0:00:43]} 37. Kf1 {[%clk 0:01:02]}  Rb2 {[%clk 0:00:36]} 38. Bd4 {[%clk 0:00:53]}  Nxd4 {[%clk 0:00:35]} 39. exd4 {[%clk 0:00:53]}  Rb3 {[%clk 0:00:35]} 40. Kf2 {[%clk 0:00:52]}  Rb2+ {[%clk 0:00:34]} 41. Ke1 {[%clk 0:00:49]}  Rb3 {[%clk 0:00:34]} 42. Ke2 {[%clk 0:00:42]}  Rxg3 {[%clk 0:00:33]} 43. Ra7 {[%clk 0:00:39]}  Rxh3 {[%clk 0:00:31]} 44. d5 {[%clk 0:00:38]}  Kf8 {[%clk 0:00:28]} 45. d6 {[%clk 0:00:36]}  Ke8 {[%clk 0:00:29]} 46. a4 {[%clk 0:00:32]}  h4 {[%clk 0:00:23]} 47. a5 {[%clk 0:00:31]}  Ra3 {[%clk 0:00:22]} 48. a6 {[%clk 0:00:31]}  h3 {[%clk 0:00:22]} 49. Re7+ {[%clk 0:00:30]}  Kd8 {[%clk 0:00:22]} 50. a7 {[%clk 0:00:25]}  h2 {[%clk 0:00:21]} 51. Rh7 {[%clk 0:00:25]}  Rxa7 {[%clk 0:00:19]} 52. Rxh2 {[%clk 0:00:25]}  Ra2+ {[%clk 0:00:19]} 0-1


[Site "https://www.chess.com"]

[Event "Titled Tuesday Blitz November 08 Early 2022"]
[White "Koziorowicz, Michal"]
[Black "Lewtak, Damian"]
[WhiteFideId "21809194"]
[BlackFideId "1141724"]
[WhiteElo "2174"]
[BlackElo "2329"]
[Result "0-1"]
[Round "08"]
[TimeControl "180+1"]
[Date "2022.11.09"]
[WhiteClock "0:00:05"]
[BlackClock "0:00:06"]

1. Nf3 {[%clk 0:02:58]}  g6 {[%clk 0:03:00]} 2. d4 {[%clk 0:02:58]}  Bg7 {[%clk 0:02:59]} 3. e4 {[%clk 0:02:59]}  a6 {[%clk 0:02:59]} 4. h4 {[%clk 0:02:56]}  h5 {[%clk 0:02:56]} 5. Bg5 {[%clk 0:02:53]}  d6 {[%clk 0:02:54]} 6. c3 {[%clk 0:02:52]}  Nd7 {[%clk 0:02:54]} 7. Bc4 {[%clk 0:02:52]}  b5 {[%clk 0:02:53]} 8. Bb3 {[%clk 0:02:51]}  Bb7 {[%clk 0:02:50]} 9. Nbd2 {[%clk 0:02:51]}  c5 {[%clk 0:02:50]} 10. Qe2 {[%clk 0:02:50]}  Qc7 {[%clk 0:02:40]} 11. O-O {[%clk 0:02:44]}  c4 {[%clk 0:02:40]} 12. Bc2 {[%clk 0:02:40]}  e5 {[%clk 0:02:40]} 13. a4 {[%clk 0:02:15]}  f6 {[%clk 0:02:37]} 14. Be3 {[%clk 0:02:15]}  Ne7 {[%clk 0:02:36]} 15. axb5 {[%clk 0:02:15]}  axb5 {[%clk 0:02:36]} 16. Rxa8+ {[%clk 0:02:15]}  Bxa8 {[%clk 0:02:37]} 17. b3 {[%clk 0:02:15]}  cxb3 {[%clk 0:02:32]} 18. Bxb3 {[%clk 0:02:16]}  d5 {[%clk 0:02:21]} 19. Qxb5 {[%clk 0:01:46]}  dxe4 {[%clk 0:02:14]} 20. dxe5 {[%clk 0:01:45]}  exf3 {[%clk 0:01:55]} 21. e6 {[%clk 0:01:45]}  O-O {[%clk 0:01:50]} 22. exd7+ {[%clk 0:01:44]}  Kh7 {[%clk 0:01:50]} 23. g3 {[%clk 0:01:06]}  Bc6 {[%clk 0:01:41]} 24. Qd3 {[%clk 0:01:06]}  Rd8 {[%clk 0:01:38]} 25. Bd4 {[%clk 0:01:00]}  Rxd7 {[%clk 0:01:32]} 26. Re1 {[%clk 0:01:00]}  Rd8 {[%clk 0:01:25]} 27. Qc4 {[%clk 0:00:44]}  Qb7 {[%clk 0:01:01]} 28. Rxe7 {[%clk 0:00:43]}  Qxe7 {[%clk 0:00:50]} 29. Qxc6 {[%clk 0:00:44]}  Qe2 {[%clk 0:00:41]} 30. Nf1 {[%clk 0:00:44]}  Rb8 {[%clk 0:00:41]} 31. Qc4 {[%clk 0:00:38]}  Ra8 {[%clk 0:00:31]} 32. Be3 {[%clk 0:00:08]}  f5 {[%clk 0:00:22]} 33. Kh2 {[%clk 0:00:08]}  Qxc4 {[%clk 0:00:08]} 34. Bxc4 {[%clk 0:00:08]}  Bxc3 {[%clk 0:00:07]} 35. Bd5 {[%clk 0:00:09]}  Ra1 {[%clk 0:00:03]} 36. Nd2 {[%clk 0:00:09]}  Bxd2 {[%clk 0:00:03]} 37. Bxd2 {[%clk 0:00:08]}  Rd1 {[%clk 0:00:03]} 38. Bxf3 {[%clk 0:00:09]}  Rxd2 {[%clk 0:00:03]} 39. Kg2 {[%clk 0:00:10]}  Rd6 {[%clk 0:00:04]} 40. Be2 {[%clk 0:00:10]}  Kg7 {[%clk 0:00:05]} 41. Bf3 {[%clk 0:00:11]}  Kf6 {[%clk 0:00:06]} 42. Be2 {[%clk 0:00:12]}  Rd8 {[%clk 0:00:06]} 43. Bf3 {[%clk 0:00:12]}  Rb8 {[%clk 0:00:07]} 44. Be2 {[%clk 0:00:13]}  Rb6 {[%clk 0:00:08]} 45. Bf3 {[%clk 0:00:13]}  Rb4 {[%clk 0:00:09]} 46. Be2 {[%clk 0:00:14]}  Rb2 {[%clk 0:00:09]} 47. Bf3 {[%clk 0:00:13]}  Ke5 {[%clk 0:00:09]} 48. Bc6 {[%clk 0:00:13]}  Rb6 {[%clk 0:00:09]} 49. Be8 {[%clk 0:00:13]}  f4 {[%clk 0:00:09]} 50. Bf7 {[%clk 0:00:12]}  Kf5 {[%clk 0:00:09]} 51. Be8 {[%clk 0:00:12]}  Rb3 {[%clk 0:00:06]} 52. Bd7+ {[%clk 0:00:12]}  Ke5 {[%clk 0:00:07]} 53. Be8 {[%clk 0:00:12]}  f3+ {[%clk 0:00:06]} 54. Kh2 {[%clk 0:00:12]}  Rb6 {[%clk 0:00:06]} 55. Bf7 {[%clk 0:00:11]}  Ke4 {[%clk 0:00:06]} 56. Be8 {[%clk 0:00:09]}  Kd3 {[%clk 0:00:05]} 57. g4 {[%clk 0:00:08]}  Ke2 {[%clk 0:00:03]} 58. Kg3 {[%clk 0:00:09]}  hxg4 {[%clk 0:00:04]} 59. Bd7 {[%clk 0:00:09]}  Rb4 {[%clk 0:00:03]} 60. Be8 {[%clk 0:00:08]}  Rb1 {[%clk 0:00:03]} 61. Bxg6 {[%clk 0:00:06]}  Rg1+ {[%clk 0:00:03]} 62. Kh2 {[%clk 0:00:06]}  Kxf2 {[%clk 0:00:04]} 63. h5 {[%clk 0:00:04]}  g3+ {[%clk 0:00:05]} 64. Kh3 {[%clk 0:00:05]}  Rh1+ {[%clk 0:00:06]} 65. Kg4 {[%clk 0:00:05]}  g2 {[%clk 0:00:06]} 0-1


[Site "https://www.chess.com"]

[Event "Titled Tuesday Blitz November 08 Early 2022"]
[White "Ladan, Nicholas"]
[Black "Mirzoev, Azer"]
[WhiteFideId "30918855"]
[BlackFideId "13400304"]
[WhiteElo "2167"]
[BlackElo "2525"]
[Result "0-1"]
[Round "08"]
[TimeControl "180+1"]
[Date "2022.11.09"]
[WhiteClock "0:01:12"]
[BlackClock "0:02:04"]

1. d4 {[%clk 0:03:00]}  d5 {[%clk 0:02:59]} 2. c4 {[%clk 0:03:01]}  c6 {[%clk 0:02:58]} 3. Nf3 {[%clk 0:03:00]}  Nf6 {[%clk 0:02:58]} 4. g3 {[%clk 0:03:00]}  dxc4 {[%clk 0:02:58]} 5. a3 {[%clk 0:02:54]}  b5 {[%clk 0:02:58]} 6. Bg2 {[%clk 0:02:54]}  Bb7 {[%clk 0:02:59]} 7. O-O {[%clk 0:02:54]}  e6 {[%clk 0:02:59]} 8. b3 {[%clk 0:02:54]}  cxb3 {[%clk 0:02:59]} 9. Qxb3 {[%clk 0:02:55]}  Nbd7 {[%clk 0:02:58]} 10. Bb2 {[%clk 0:02:48]}  a6 {[%clk 0:02:58]} 11. Rc1 {[%clk 0:02:45]}  c5 {[%clk 0:02:56]} 12. Ne5 {[%clk 0:02:34]}  Bxg2 {[%clk 0:02:54]} 13. Kxg2 {[%clk 0:02:34]}  Nxe5 {[%clk 0:02:54]} 14. dxe5 {[%clk 0:02:34]}  Qd5+ {[%clk 0:02:54]} 15. Qf3 {[%clk 0:02:26]}  Qxf3+ {[%clk 0:02:52]} 16. Kxf3 {[%clk 0:02:25]}  Nd7 {[%clk 0:02:51]} 17. a4 {[%clk 0:02:23]}  Rb8 {[%clk 0:02:43]} 18. Na3 {[%clk 0:02:18]}  c4 {[%clk 0:02:40]} 19. axb5 {[%clk 0:02:08]}  axb5 {[%clk 0:02:39]} 20. Nc2 {[%clk 0:02:04]}  Bc5 {[%clk 0:02:32]} 21. Rd1 {[%clk 0:01:56]}  Ke7 {[%clk 0:02:28]} 22. Bd4 {[%clk 0:01:47]}  Bxd4 {[%clk 0:02:18]} 23. Nxd4 {[%clk 0:01:48]}  Nxe5+ {[%clk 0:02:16]} 24. Ke4 {[%clk 0:01:42]}  Kf6 {[%clk 0:02:14]} 25. f4 {[%clk 0:01:41]}  Ng4 {[%clk 0:02:05]} 26. h3 {[%clk 0:01:14]}  Nf2+ {[%clk 0:02:04]} 27. Kf3 {[%clk 0:01:12]}  Nxd1 {[%clk 0:02:04]} 0-1


[Site "https://www.chess.com"]

[Event "Titled Tuesday Blitz November 08 Early 2022"]
[White "Le, Tuan Minh"]
[Black "Kamsky, Gata"]
[WhiteFideId "12401153"]
[BlackFideId "2000024"]
[WhiteElo "2530"]
[BlackElo "2666"]
[Result "1-0"]
[Round "08"]
[TimeControl "180+1"]
[Date "2022.11.08"]
[WhiteClock "0:00:05"]
[BlackClock "0:00:01"]

1. d4 {[%clk 0:02:43]}  Nf6 {[%clk 0:02:55]} 2. Nf3 {[%clk 0:02:43]}  g6 {[%clk 0:02:52]} 3. Bg5 {[%clk 0:02:44]}  Bg7 {[%clk 0:02:51]} 4. Nbd2 {[%clk 0:02:41]}  d6 {[%clk 0:02:49]} 5. c3 {[%clk 0:02:41]}  h6 {[%clk 0:02:49]} 6. Bh4 {[%clk 0:02:41]}  Bf5 {[%clk 0:02:45]} 7. Qb3 {[%clk 0:02:35]}  Nbd7 {[%clk 0:02:31]} 8. h3 {[%clk 0:02:17]}  g5 {[%clk 0:02:30]} 9. Bg3 {[%clk 0:02:17]}  c5 {[%clk 0:02:29]} 10. e3 {[%clk 0:02:16]}  Qb6 {[%clk 0:02:23]} 11. Be2 {[%clk 0:02:11]}  O-O {[%clk 0:02:21]} 12. O-O {[%clk 0:02:10]}  Qc6 {[%clk 0:01:49]} 13. Bb5 {[%clk 0:02:07]}  Qc7 {[%clk 0:01:48]} 14. Rfe1 {[%clk 0:02:06]}  a6 {[%clk 0:01:41]} 15. Bf1 {[%clk 0:02:06]}  Ne4 {[%clk 0:01:40]} 16. Nxe4 {[%clk 0:02:06]}  Bxe4 {[%clk 0:01:40]} 17. Nd2 {[%clk 0:02:07]}  Bg6 {[%clk 0:01:38]} 18. a4 {[%clk 0:02:04]}  b6 {[%clk 0:01:36]} 19. Be2 {[%clk 0:01:53]}  Kh8 {[%clk 0:01:35]} 20. h4 {[%clk 0:01:53]}  f5 {[%clk 0:01:10]} 21. hxg5 {[%clk 0:01:51]}  hxg5 {[%clk 0:01:09]} 22. Nf3 {[%clk 0:01:51]}  Bf6 {[%clk 0:01:06]} 23. Bd3 {[%clk 0:01:48]}  e5 {[%clk 0:00:30]} 24. dxe5 {[%clk 0:01:47]}  Nxe5 {[%clk 0:00:28]} 25. Nxe5 {[%clk 0:01:30]}  dxe5 {[%clk 0:00:28]} 26. Qc2 {[%clk 0:01:31]}  Qd7 {[%clk 0:00:26]} 27. Rad1 {[%clk 0:01:28]}  Qe6 {[%clk 0:00:26]} 28. f3 {[%clk 0:01:17]}  Kg7 {[%clk 0:00:25]} 29. Qe2 {[%clk 0:01:07]}  Qb3 {[%clk 0:00:22]} 30. Bc4 {[%clk 0:00:29]}  Qxa4 {[%clk 0:00:21]} 31. Rd6 {[%clk 0:00:30]}  b5 {[%clk 0:00:11]} 32. Rd7+ {[%clk 0:00:30]}  Bf7 {[%clk 0:00:11]} 33. Be6 {[%clk 0:00:31]}  b4 {[%clk 0:00:07]} 34. Bxf5 {[%clk 0:00:29]}  Rad8 {[%clk 0:00:06]} 35. Red1 {[%clk 0:00:26]}  Rxd7 {[%clk 0:00:06]} 36. Rxd7 {[%clk 0:00:27]}  bxc3 {[%clk 0:00:06]} 37. bxc3 {[%clk 0:00:28]}  Qa1+ {[%clk 0:00:06]} 38. Be1 {[%clk 0:00:14]}  Qa4 {[%clk 0:00:05]} 39. e4 {[%clk 0:00:11]}  Rd8 {[%clk 0:00:05]} 40. Rxd8 {[%clk 0:00:09]}  Bxd8 {[%clk 0:00:04]} 41. Qe3 {[%clk 0:00:09]}  Be7 {[%clk 0:00:04]} 42. Kh2 {[%clk 0:00:09]}  Qd1 {[%clk 0:00:03]} 43. Bg3 {[%clk 0:00:09]}  Qd6 {[%clk 0:00:03]} 44. Qe2 {[%clk 0:00:07]}  a5 {[%clk 0:00:03]} 45. Qb5 {[%clk 0:00:08]}  Qc7 {[%clk 0:00:03]} 46. Qa6 {[%clk 0:00:07]}  Bd6 {[%clk 0:00:03]} 47. Bf2 {[%clk 0:00:06]}  Be8 {[%clk 0:00:04]} 48. Be3 {[%clk 0:00:06]}  a4 {[%clk 0:00:04]} 49. Bxg5 {[%clk 0:00:07]}  Qc6 {[%clk 0:00:03]} 50. Qa7+ {[%clk 0:00:07]}  Qc7 {[%clk 0:00:04]} 51. Qa8 {[%clk 0:00:07]}  Kf7 {[%clk 0:00:01]} 52. Bg4 {[%clk 0:00:05]} 1-0


[Site "https://www.chess.com"]

[Event "Titled Tuesday Blitz November 08 Early 2022"]
[White "Maghsoodloo, Parham"]
[Black "Fernandez Guillen, Ernesto J."]
[WhiteFideId "12539929"]
[BlackFideId "3512428"]
[WhiteElo "2676"]
[BlackElo "2450"]
[Result "1-0"]
[Round "08"]
[TimeControl "180+1"]
[Date "2022.11.08"]
[WhiteClock "0:00:11"]
[BlackClock "0:00:01"]

1. e4 {[%clk 0:03:00]}  e5 {[%clk 0:02:59]} 2. Nf3 {[%clk 0:03:00]}  Nc6 {[%clk 0:03:00]} 3. Bb5 {[%clk 0:03:01]}  f5 {[%clk 0:03:01]} 4. d3 {[%clk 0:03:00]}  fxe4 {[%clk 0:03:01]} 5. dxe4 {[%clk 0:03:00]}  Nf6 {[%clk 0:03:02]} 6. O-O {[%clk 0:03:00]}  Bc5 {[%clk 0:03:01]} 7. Bg5 {[%clk 0:02:56]}  d6 {[%clk 0:03:01]} 8. Nc3 {[%clk 0:02:53]}  O-O {[%clk 0:03:01]} 9. Nd5 {[%clk 0:02:47]}  Kh8 {[%clk 0:03:01]} 10. c3 {[%clk 0:02:37]}  Be6 {[%clk 0:02:52]} 11. b4 {[%clk 0:02:35]}  Bb6 {[%clk 0:02:52]} 12. Bc4 {[%clk 0:02:29]}  Bxd5 {[%clk 0:02:51]} 13. Bxd5 {[%clk 0:02:29]}  Qe8 {[%clk 0:02:35]} 14. a4 {[%clk 0:02:23]}  a5 {[%clk 0:02:35]} 15. b5 {[%clk 0:02:23]}  Ne7 {[%clk 0:02:35]} 16. Bxb7 {[%clk 0:02:22]}  Rb8 {[%clk 0:02:29]} 17. Bxf6 {[%clk 0:02:22]}  Rxf6 {[%clk 0:02:25]} 18. Bd5 {[%clk 0:02:22]}  Qg6 {[%clk 0:02:23]} 19. c4 {[%clk 0:02:15]}  Rbf8 {[%clk 0:02:23]} 20. Ra3 {[%clk 0:02:16]}  Bc5 {[%clk 0:02:17]} 21. Rb3 {[%clk 0:02:13]}  Qg4 {[%clk 0:02:07]} 22. h3 {[%clk 0:02:11]}  Qh5 {[%clk 0:02:05]} 23. Kh2 {[%clk 0:02:08]}  Qh6 {[%clk 0:02:00]} 24. g3 {[%clk 0:01:58]}  Qh5 {[%clk 0:01:19]} 25. Kg2 {[%clk 0:01:55]}  Rh6 {[%clk 0:01:15]} 26. h4 {[%clk 0:01:49]}  Rhf6 {[%clk 0:01:12]} 27. Bc6 {[%clk 0:01:42]}  Ng6 {[%clk 0:01:05]} 28. Bd7 {[%clk 0:01:40]}  Ne7 {[%clk 0:00:50]} 29. Qe2 {[%clk 0:01:27]}  Qg6 {[%clk 0:00:48]} 30. Kh3 {[%clk 0:01:10]}  h6 {[%clk 0:00:48]} 31. Bg4 {[%clk 0:01:10]}  Qf7 {[%clk 0:00:48]} 32. h5 {[%clk 0:01:09]}  g6 {[%clk 0:00:42]} 33. Nh4 {[%clk 0:01:05]}  Rxf2 {[%clk 0:00:11]} 34. Rxf2 {[%clk 0:01:04]}  Qxf2 {[%clk 0:00:12]} 35. Qxf2 {[%clk 0:00:55]}  Rxf2 {[%clk 0:00:13]} 36. hxg6 {[%clk 0:00:55]}  Kg7 {[%clk 0:00:13]} 37. Nf5+ {[%clk 0:00:55]}  Nxf5 {[%clk 0:00:12]} 38. Bxf5 {[%clk 0:00:55]}  h5 {[%clk 0:00:11]} 39. g4 {[%clk 0:00:53]}  hxg4+ {[%clk 0:00:09]} 40. Kxg4 {[%clk 0:00:54]}  Rg2+ {[%clk 0:00:09]} 41. Kf3 {[%clk 0:00:54]}  Rh2 {[%clk 0:00:09]} 42. Kg3 {[%clk 0:00:52]}  Rh1 {[%clk 0:00:08]} 43. Kg2 {[%clk 0:00:51]}  Rh4 {[%clk 0:00:08]} 44. Rg3 {[%clk 0:00:49]}  Rh6 {[%clk 0:00:06]} 45. Kf3 {[%clk 0:00:43]}  Rh2 {[%clk 0:00:06]} 46. Kg4 {[%clk 0:00:42]}  Bf2 {[%clk 0:00:05]} 47. Rb3 {[%clk 0:00:41]}  Rh4+ {[%clk 0:00:03]} 48. Kf3 {[%clk 0:00:41]}  Bb6 {[%clk 0:00:02]} 49. Rb1 {[%clk 0:00:36]}  Rh6 {[%clk 0:00:03]} 50. Kg3 {[%clk 0:00:36]}  Rh5 {[%clk 0:00:03]} 51. Kg4 {[%clk 0:00:36]}  Rh6 {[%clk 0:00:04]} 52. Re1 {[%clk 0:00:34]}  Rh2 {[%clk 0:00:04]} 53. Rf1 {[%clk 0:00:32]}  Rh6 {[%clk 0:00:04]} 54. Rd1 {[%clk 0:00:24]}  Bc5 {[%clk 0:00:05]} 55. Rd3 {[%clk 0:00:22]}  Bb6 {[%clk 0:00:05]} 56. Rg3 {[%clk 0:00:21]}  Bc5 {[%clk 0:00:05]} 57. Kf3 {[%clk 0:00:19]}  Bb6 {[%clk 0:00:05]} 58. Rg2 {[%clk 0:00:19]}  Bc5 {[%clk 0:00:06]} 59. Ke2 {[%clk 0:00:20]}  Bb6 {[%clk 0:00:06]} 60. Kd2 {[%clk 0:00:20]}  Bc5 {[%clk 0:00:06]} 61. Kd3 {[%clk 0:00:20]}  Rh4 {[%clk 0:00:06]} 62. Be6 {[%clk 0:00:19]}  Rh6 {[%clk 0:00:06]} 63. Bf5 {[%clk 0:00:17]}  Rh4 {[%clk 0:00:06]} 64. Bd7 {[%clk 0:00:18]}  Rh6 {[%clk 0:00:06]} 65. Be8 {[%clk 0:00:18]}  Rh3+ {[%clk 0:00:07]} 66. Kc2 {[%clk 0:00:19]}  Re3 {[%clk 0:00:06]} 67. Rh2 {[%clk 0:00:19]}  Rxe4 {[%clk 0:00:06]} 68. Rh7+ {[%clk 0:00:19]}  Kg8 {[%clk 0:00:07]} 69. Rxc7 {[%clk 0:00:19]}  Rxc4+ {[%clk 0:00:07]} 70. Kd1 {[%clk 0:00:19]}  Rxa4 {[%clk 0:00:07]} 71. Bc6 {[%clk 0:00:18]}  Rd4+ {[%clk 0:00:07]} 72. Ke2 {[%clk 0:00:18]}  a4 {[%clk 0:00:05]} 73. Re7 {[%clk 0:00:19]}  a3 {[%clk 0:00:05]} 74. Bd7 {[%clk 0:00:19]}  Re4+ {[%clk 0:00:04]} 75. Kd3 {[%clk 0:00:18]}  Rd4+ {[%clk 0:00:04]} 76. Kc3 {[%clk 0:00:18]}  Rf4 {[%clk 0:00:03]} 77. Be6+ {[%clk 0:00:18]}  Kf8 {[%clk 0:00:04]} 78. Rh7 {[%clk 0:00:17]}  Rf3+ {[%clk 0:00:03]} 79. Kc4 {[%clk 0:00:17]}  Rg3 {[%clk 0:00:03]} 80. Rf7+ {[%clk 0:00:14]}  Ke8 {[%clk 0:00:03]} 81. g7 {[%clk 0:00:15]}  a2 {[%clk 0:00:02]} 82. Rf1 {[%clk 0:00:12]}  Bd4 {[%clk 0:00:02]} 83. b6 {[%clk 0:00:11]}  a1=Q {[%clk 0:00:01]} 84. Rxa1 {[%clk 0:00:10]}  Bxa1 {[%clk 0:00:02]} 85. b7 {[%clk 0:00:11]}  Rc3+ {[%clk 0:00:02]} 86. Kb4 {[%clk 0:00:11]}  Ke7 {[%clk 0:00:01]} 87. g8=Q {[%clk 0:00:11]} 1-0


[Site "https://www.chess.com"]

[Event "Titled Tuesday Blitz November 08 Early 2022"]
[White "Makhmudov, Shukhrat"]
[Black "Gronnestad, Anita"]
[WhiteFideId "14200775"]
[BlackFideId "1502972"]
[WhiteElo "2135"]
[BlackElo "1939"]
[Result "0-1"]
[Round "08"]
[TimeControl "180+1"]
[Date "2022.11.09"]
[WhiteClock "0:01:37"]
[BlackClock "0:01:33"]

1. e4 {[%clk 0:03:00]}  c6 {[%clk 0:03:00]} 2. d3 {[%clk 0:02:59]}  d5 {[%clk 0:03:00]} 3. Nd2 {[%clk 0:02:59]}  Nf6 {[%clk 0:03:00]} 4. Ngf3 {[%clk 0:02:53]}  Bg4 {[%clk 0:02:59]} 5. e5 {[%clk 0:02:46]}  Nfd7 {[%clk 0:02:58]} 6. d4 {[%clk 0:02:45]}  e6 {[%clk 0:02:58]} 7. c3 {[%clk 0:02:45]}  c5 {[%clk 0:02:58]} 8. Bd3 {[%clk 0:02:45]}  Nc6 {[%clk 0:02:58]} 9. h3 {[%clk 0:02:38]}  Bh5 {[%clk 0:02:56]} 10. Be2 {[%clk 0:02:24]}  Be7 {[%clk 0:02:53]} 11. a3 {[%clk 0:02:24]}  O-O {[%clk 0:02:52]} 12. b4 {[%clk 0:02:23]}  cxd4 {[%clk 0:02:49]} 13. cxd4 {[%clk 0:02:24]}  a5 {[%clk 0:02:49]} 14. b5 {[%clk 0:02:23]}  Na7 {[%clk 0:02:49]} 15. a4 {[%clk 0:02:24]}  Bb4 {[%clk 0:02:48]} 16. O-O {[%clk 0:02:23]}  Nc8 {[%clk 0:02:48]} 17. Ba3 {[%clk 0:02:23]}  Ncb6 {[%clk 0:02:47]} 18. Bxb4 {[%clk 0:02:21]}  axb4 {[%clk 0:02:48]} 19. Qb3 {[%clk 0:02:21]}  Qe7 {[%clk 0:02:43]} 20. Rfb1 {[%clk 0:02:20]}  Rfc8 {[%clk 0:02:37]} 21. a5 {[%clk 0:02:17]}  Nc4 {[%clk 0:02:31]} 22. Bxc4 {[%clk 0:02:17]}  dxc4 {[%clk 0:02:31]} 23. Nxc4 {[%clk 0:02:17]}  Bxf3 {[%clk 0:02:29]} 24. gxf3 {[%clk 0:02:16]}  Qg5+ {[%clk 0:02:27]} 25. Kf1 {[%clk 0:02:16]}  Qf5 {[%clk 0:02:24]} 26. Nd6 {[%clk 0:02:13]}  Qxh3+ {[%clk 0:02:23]} 27. Ke2 {[%clk 0:02:13]}  Rc3 {[%clk 0:02:19]} 28. Qxb4 {[%clk 0:02:06]}  Qxf3+ {[%clk 0:02:17]} 29. Kf1 {[%clk 0:02:06]}  Qd3+ {[%clk 0:01:59]} 30. Kg1 {[%clk 0:02:04]}  Qg6+ {[%clk 0:01:56]} 31. Kf1 {[%clk 0:02:04]}  Rh3 {[%clk 0:01:53]} 32. Qd2 {[%clk 0:01:37]}  Rh1+ {[%clk 0:01:33]} 33. Ke2 {[%clk 0:01:37]}  Rxb1 {[%clk 0:01:33]} 0-1


[Site "https://www.chess.com"]